Cogmind - Beta 13 @@@ ROGUE MODE // 2024.06.14 @ 01:47:53 Player: doughoff Result: Self-destructed Performance ------------- Evolutions (2) 1000 Regions Visited (5) 1000 Robots Destroyed (57) 285 Value Destroyed (1377) 1377 Prototype IDs (8) 160 Alien Tech Used (0) 0 Bonus (45) 45 TOTAL SCORE: 3867 Bonus ------- Follower Combat Kills 85 Friendly Fire -40 Cogmind --------- Core Integrity 550/550 Matter 300/300 Energy 160/160 System Corruption 0% Temperature Cool (0) Movement Rolling (175) Ox6 Location -8/Materials Parts ------- > --- POWER (1) -------- Light Nuclear Core > --- PROPULSION (2) --- Wheel Armored Wheel > --- UTILITY (6) ------ Cargo Storage Unit Hardened Light Armor Plating Hacking Suite > --- WEAPON (2) ------- Mini Grenade Launcher Katana > --- INVENTORY (30) --- Light Ion Engine Light Ion Engine Light Treads Armored Wheel Armored Wheel Armored Wheel Heat Sink Improved Terrain Scanner Improved Terrain Scan Processor Improved Terrain Scan Processor Improved Terrain Scan Processor Improved Terrain Scan Processor Light Armor Plating Light Armor Plating Light Armor Plating Light Armor Plating Light Armor Plating Light Armor Plating Light Armor Plating Light Armor Plating Beam Rifle Improved Medium Laser Improved Medium Laser Improved Medium Laser Particle Cannon Advanced EMP Blaster Mini Grenade Launcher Katana Katana Katana Peak State ------------ > --- POWER ------------ Light Nuclear Core > --- PROPULSION ------- Compact Wheel Armored Wheel > --- UTILITY ---------- Cargo Storage Unit Targeting Computer Hacking Suite > --- WEAPON ----------- Katana Katana > --- INVENTORY -------- Light Treads Armored Wheel Armored Wheel Armored Wheel Heat Sink Improved Terrain Scanner Improved Terrain Scan Processor Improved Terrain Scan Processor Improved Terrain Scan Processor Improved Terrain Scan Processor Light Armor Plating Light Armor Plating Light Armor Plating Light Armor Plating Light Armor Plating Light Armor Plating Light Armor Plating Light Armor Plating Hardened Light Armor Plating Beam Rifle Spread Laser Improved Medium Laser Improved Medium Laser Improved Medium Laser Particle Cannon Advanced EMP Blaster Mini Grenade Launcher Mini Grenade Launcher Katana Katana [Rating: 24] Favorites ----------- Power Light Nuclear Core Engine Improved Ion Engine Power Core Light Nuclear Core Propulsion Compact Wheel Treads Light Treads Leg Aluminum Leg Wheel Compact Wheel Utility Hacking Suite Device Heat Sink Storage Cargo Storage Unit Processor Targeting Computer Hackware Hacking Suite Protection Hardened Light Armor Plating Weapon Improved Medium Laser Energy Gun Improved Medium Laser Energy Cannon Particle Cannon Ballistic Gun Light Assault Rifle Launcher Mini Grenade Launcher Slashing Weapon Katana Build | -11 -10 -10 -9 -9 -8 ------- Run | Yrd Mat Min Mat Min Mat Slots Evolved 4 | . . . 2 . 2 Power . | . . . . . . Propulsion . | . . . . . . Utility 4 | . . . 2 . 2 Weapon . | . . . . . . Parts Attached 51 | 6 3 3 36 3 . Power 10 | 2 1 . 7 . . Engine 8 | 2 . . 6 . . Core 2 | . 1 . 1 . . Reactor . | . . . . . . Propulsion 12 | 1 1 . 9 1 . Treads 2 | 1 1 . . . . Leg 5 | . . . 5 . . Wheel 5 | . . . 4 1 . Hover . | . . . . . . Flight . | . . . . . . Utility 8 | 1 1 . 5 1 . Device 2 | . . . 2 . . Storage 2 | 1 . . 1 . . Processor 1 | . . . 1 . . Hackware 1 | . . . 1 . . Protection 2 | . 1 . . 1 . Artifact . | . . . . . . Weapon 21 | 2 . 3 15 1 . Energy Gun 9 | . . 1 8 . . Energy Cannon 1 | . . . 1 . . Ballistic Gun 5 | 2 . 2 1 . . Ballistic Cannon . | . . . . . . Launcher 3 | . . . 2 1 . Special Weapon . | . . . . . . Impact Weapon . | . . . . . . Slashing Weapon 3 | . . . 3 . . Piercing Weapon . | . . . . . . Special Melee Weapon . | . . . . . . Unidentified Prototypes 2 | . . . 2 . . Parts Lost 6 | . 1 . 5 . . Power 4 | . 1 . 3 . . Propulsion 2 | . . . 2 . . Utility . | . . . . . . Weapon . | . . . . . . Highest Loss Streak 2 | . 1 . 2 . . To Critical Strikes . | . . . . . . Average Slot Usage (%) 90 | . 91 100 89 88 72 Engine 6 | . 10 . 9 . . Core 5 | . 3 14 1 11 9 Treads 6 | . 28 28 1 . . Leg 5 | . . . 10 . . Wheel 10 | . . . 8 22 18 Device 2 | . . . 4 . . Storage 11 | . 14 14 11 11 9 Processor 4 | . . . 8 . . Hackware 8 | . . . 10 11 9 Protection 5 | . 5 14 1 10 9 Energy Gun 9 | . . 8 15 . . Ballistic Gun 6 | . 28 19 1 . . Launcher 3 | . . . . 11 9 Slashing Weapon 3 | . . . 1 11 9 Naked Turns . | . . . . . . Heaviest Build 154 | 12 13 15 154 153 153 Greatest Support 40 | 20 40 40 40 28 22 Greatest Overweight (x) 9 | . . . 9 6 6 Average Overweight (x) 3 | . . . 3 5 6 Largest Inventory Capacity 30 | 8 8 8 30 30 30 Average Capacity 20 | 7 8 8 20 30 30 Most Carried 30 | 5 8 8 30 30 30 Average Carried 18 | 3 6 8 17 29 30 Final Capacity 30 | 8 8 8 30 30 30 Final Carried 30 | 5 8 8 30 30 30 Class Distribution -------------------- 56% | Hauler-Mutant 29% | Mutant 13% | Scavenger-Mutant Dominant Class ---------------- Mutant | -10/Materials Mutant | -10/Mines Hauler-Mutant | -9/Materials Hauler-Mutant | -9/Mines Hauler-Mutant | -8/Materials Resources | -11 -10 -10 -9 -9 -8 ----------- Run | Yrd Mat Min Mat Min Mat Matter Collected 909 | 260 92 60 387 110 . Remotely . | . . . . . . Salvage Created 1833 | . 280 78 1369 106 . Parts 115 | . 14 8 72 21 . Haulers Intercepted 4 | . . . 4 . . Recyclers Shooed . | . . . . . . Parts Field Recycled . | . . . . . . Retrieved Matter . | . . . . . . Parts Self-Destructed . | . . . . . . Prevented . | . . . . . . Kills | -11 -10 -10 -9 -9 -8 ------- Run | Yrd Mat Min Mat Min Mat Combat Hostiles Destroyed 45 | . 6 4 25 10 . Melee 2 | . . . 2 . . Guns 28 | . 6 4 18 . . Cannons 5 | . . . 5 . . AOE 10 | . . . . 10 . Classes Destroyed 10 | . 1 1 8 . . Worker 3 | . . . 1 2 . Tunneler 2 | . . . 1 1 . Hauler 4 | . . . 4 . . Recycler 1 | . . . 1 . . Operator 1 | . . . 1 . . Watcher 1 | . . . 1 . . Swarmer 16 | . . 3 3 10 . Grunt 20 | . 6 1 13 . . Brawler 1 | . . . 1 . . Sentry 8 | . . . 8 . . Best Kill Streak 5 | . 2 3 4 5 . Combat Bots Only 4 | . 2 3 3 4 . Max Kills in Single Turn 3 | . 1 1 2 3 . Gunslinging . | . . . . . . Exploded 3 | . . . . 3 . Melee 1 | . . . 1 . . Uniques/NPCs Destroyed . | . . . . . . Combat | -11 -10 -10 -9 -9 -8 -------- Run | Yrd Mat Min Mat Min Mat Hostile Shots Fired 234 | . 44 26 149 15 . Missed 69 | . 11 13 38 7 . Damage Taken 2064 | . 444 121 1373 126 . Core 412 | . 92 39 266 15 . Absorbed by Shields . | . . . . . . Redirected to Shielding 40 | . 8 7 25 . . Core Remaining (%) 58 | 100 . 47 . 29 . Volleys Fired 140 | . 33 14 85 8 . Largest 2 | . 2 2 2 1 . Hottest 133 | . 40 85 133 30 . Shots Fired 270 | . 68 27 167 8 . Gun 239 | . 68 27 144 . . Cannon 21 | . . . 21 . . Launcher 10 | . . . 2 8 . Special . | . . . . . . Kinetic 112 | . 68 18 26 . . Thermal 148 | . . 9 139 . . Explosive 10 | . . . 2 8 . Electromagnetic . | . . . . . . Robot Hit Streak 48 | . 48 6 15 2 . Robot Miss Streak 6 | . 1 3 6 3 . Penetration Max . | . . . . . . Secondary Targets 3 | . . 2 1 . . Max Gunslinging Chain 1 | . . 1 1 . . Shots Hit Robots 188 | . 57 16 111 4 . Core Hits 118 | . 18 10 78 12 . Critical Kills . | . . . . . . Critical Parts Destroyed . | . . . . . . Critical Strikes 2 | . . . 2 . . Burn 2 | . . . 2 . . Melee Attacks 9 | . . . 5 4 . Impact . | . . . . . . Slashing 9 | . . . 5 4 . Piercing . | . . . . . . Sneak Attacks 3 | . . . 1 2 . Combat Hostiles . | . . . . . . Follow-up Attacks 1 | . . . 1 . . Damage Inflicted 3450 | . 461 215 1930 844 . Guns 2127 | . 461 215 1451 . . Cannons 245 | . . . 245 . . Explosions 717 | . . . 15 702 . Melee 346 | . . . 204 142 . Ramming 15 | . . . 15 . . Kinetic 659 | . 461 104 94 . . Thermal 1713 | . . 111 1602 . . Explosive 717 | . . . 15 702 . Electromagnetic . | . . . . . . Impact . | . . . . . . Slashing 346 | . . . 204 142 . Piercing . | . . . . . . Highest Corruption 2 | . 2 2 . . . Average Corruption 1 | . 1 2 . . . Corruption Purged . | . . . . . . Corruption Blocked . | . . . . . . Effects 10 | . 5 5 . . . Message Errors 1 | . 1 . . . . Matter Fused 2 | . 1 1 . . . Heat Flow Errors 1 | . . 1 . . . Energy Discharges 1 | . . 1 . . . Data Loss (minor) 1 | . . 1 . . . Misfires 2 | . 2 . . . . Alerts 1 | . 1 . . . . Weapon Failures 1 | . . 1 . . . Overload Shots . | . . . . . . Overflow Damage 101 | . . . 45 56 . Projectiles . | . . . . . . Explosions 56 | . . . . 56 . Melee 45 | . . . 45 . . Knockbacks . | . . . . . . Impact . | . . . . . . Kinetic . | . . . . . . Secondary . | . . . . . . Self-Inflicted Damage 64 | . . . . 64 . Shots 3 | . . . . 3 . Rammed . | . . . . . . Targets Rammed 2 | . . . 2 . . Kicked 2 | . . . 2 . . Crushed . | . . . . . . Highest Temperature 414 | . 40 204 414 . . Average Temperature 103 | . 10 71 124 . . Received Heat Transfer 834 | . 252 36 546 . . Effects 8 | . . . 8 . . Energy Bleed 3 | . . . 3 . . Interference 3 | . . . 3 . . Short Circuit 1 | . . . 1 . . Damage (minor) 1 | . . . 1 . . Siege Activations . | . . . . . . Robots Corrupted . | . . . . . . Combat Hostiles . | . . . . . . Parts Fried . | . . . . . . Impact Corruptions . | . . . . . . Robots Melted . | . . . . . . Combat Hostiles . | . . . . . . Parts Melted 6 | . . 1 5 . . Heat Transferred 3472 | . . 259 3213 . . Parts Sabotaged . | . . . . . . Parts Stolen . | . . . . . . Parts Stripped . | . . . . . . Power Chain Reactions . | . . . . . . Alert | -11 -10 -10 -9 -9 -8 ------- Run | Yrd Mat Min Mat Min Mat Peak Influence 405 | . 130 191 304 405 . Initial 114 | . . 15 74 114 . Average 105 | . 48 74 90 178 . Maximum Alert Level 2 | . . . 1 2 . Low Security (%) 80 | 100 100 100 90 45 100 Level 1 17 | . . . 9 47 . Level 2 1 | . . . . 7 . Level 3 . | . . . . . . Level 4 . | . . . . . . Level 5 . | . . . . . . High Security . | . . . . . . Max Security . | . . . . . . Squads Dispatched 4 | . . . 3 1 . Investigation 3 | . . . 2 1 . Extermination . | . . . . . . Reinforcement 1 | . . . 1 . . Assault . | . . . . . . Garrison . | . . . . . . Intercept . | . . . . . . Searches Triggered . | . . . . . . Construction Impeded . | . . . . . . Haulers Reinforced . | . . . . . . Active Scanning Responses . | . . . . . . Cargo Convoy Interrupts . | . . . . . . Stealth | -11 -10 -10 -9 -9 -8 --------- Run | Yrd Mat Min Mat Min Mat Distress Signals 4 | . . . 4 . . Communications Jammed . | . . . . . . Distress Signals . | . . . . . . Times Spotted 58 | . 9 7 34 8 . Peak Tracking Total 3 | . 3 3 3 3 . Tactical Retreats 1 | . . . 1 . . Traps | -11 -10 -10 -9 -9 -8 ------- Run | Yrd Mat Min Mat Min Mat Traps Triggered 3 | . 2 . 1 . . Indirectly . | . . . . . . Trap Hack Attempts . | . . . . . . Triggered . | . . . . . . Disarmed . | . . . . . . Reprogrammed . | . . . . . . Reused . | . . . . . . Traps Extracted . | . . . . . . Installed . | . . . . . . Triggered . | . . . . . . Machines | -11 -10 -10 -9 -9 -8 ---------- Run | Yrd Mat Min Mat Min Mat Machines Disabled . | . . . . . . Max in Single Turn . | . . . . . . Machines Repaired . | . . . . . . Machines Dismantled . | . . . . . . Machines Sabotaged . | . . . . . . Overloaded Fab Kills . | . . . . . . Hacking | -11 -10 -10 -9 -9 -8 --------- Run | Yrd Mat Min Mat Min Mat Machines Accessed 12 | . . . 10 2 . Terminals 10 | . . . 10 . . Fabricators . | . . . . . . Repair Stations . | . . . . . . Recycling Units . | . . . . . . Scanalyzers . | . . . . . . Garrison Access . | . . . . . . Total Hacks 29 | . . . 27 2 . Successful 20 | . . . 18 2 . Failed 9 | . . . 9 . . Catastrophic 1 | . . . 1 . . Database Lockouts . | . . . . . . Manual 16 | . . . 16 . . Terminals 27 | . . . 27 . . Fabricators . | . . . . . . Repair Stations . | . . . . . . Recycling Units . | . . . . . . Scanalyzers . | . . . . . . Garrison Access . | . . . . . . Terminal Hacks 12 | . . . 10 2 . Robot Analysis 1 | . . . 1 . . Prototype ID Bank 3 | . . . 3 . . Open Door 2 | . . . . 2 . Terminal Index 1 | . . . 1 . . Alert Level 1 | . . . 1 . . Locate Traps 1 | . . . 1 . . Dispatch Records 1 | . . . 1 . . Maintenance Status 1 | . . . 1 . . Hauler Manifests 1 | . . . 1 . . Fabricator Hacks . | . . . . . . Repair Station Hacks . | . . . . . . Recycling Unit Hacks . | . . . . . . Scanalyzer . | . . . . . . Garrison Access Hacks . | . . . . . . Unauthorized Hacks 8 | . . . 8 . . Terminals 8 | . . . 8 . . Botnet 8 | . . . 8 . . Fabricators . | . . . . . . Repair Stations . | . . . . . . Recycling Units . | . . . . . . Scanalyzers . | . . . . . . Garrison Access . | . . . . . . Data Cores Recovered 1 | . . . 1 . . Used . | . . . . . . Hacking Detections 9 | . . . 9 . . Full Trace Events 3 | . . . 3 . . Feedback Events . | . . . . . . Feedback Blocked . | . . . . . . Robot Schematics Acquired . | . . . . . . Robots Built . | . . . . . . Authchips . | . . . . . . Time . | . . . . . . Total Robot Build Rating . | . . . . . . Part Schematics Acquired . | . . . . . . Parts Built . | . . . . . . Authchips . | . . . . . . Time . | . . . . . . Total Part Build Rating . | . . . . . . Parts Repaired . | . . . . . . Time . | . . . . . . Parts Recycled . | . . . . . . Recycled Matter . | . . . . . . Retrieved Matter . | . . . . . . Retrieved Components . | . . . . . . Parts Scanalyzed . | . . . . . . Part Schematics Acquired . | . . . . . . Parts Damaged . | . . . . . . Bothacking | -11 -10 -10 -9 -9 -8 ------------ Run | Yrd Mat Min Mat Min Mat Used RIF Installer . | . . . . . . Robots Hacked . | . . . . . . Non-combat . | . . . . . . Combat . | . . . . . . Robot Hacks Applied . | . . . . . . Relay Couplers Released . | . . . . . . Fabnet Peak Effective % . | . . . . . . Robots Rewired . | . . . . . . Allies Hacked . | . . . . . . Hacks Repelled . | . . . . . . Allies | -11 -10 -10 -9 -9 -8 -------- Run | Yrd Mat Min Mat Min Mat Total Allies 1 | . . 1 . . . Largest Group 1 | . . 1 1 . . Highest-Rated Group 31 | . . 31 26 . . Highest-Rated Ally 31 | . . 31 26 . . Total Orders . | . . . . . . Ally Attacks 15 | . . 11 4 . . Total Damage 210 | . . 170 40 . . Kills 3 | . . 3 . . . Allies Corrupted . | . . . . . . Allies Melted . | . . . . . . Intel | -11 -10 -10 -9 -9 -8 ------- Run | Yrd Mat Min Mat Min Mat Robot Analysis Total 1 | . . . 1 . . Derelict Logs Recovered 2 | . . 1 . 1 . Drone Launches . | . . . . . . Drone Recoveries . | . . . . . . Exploration | -11 -10 -10 -9 -9 -8 ------------- Run | Yrd Mat Min Mat Min Mat Turns Passed 4782 | 71 598 386 2487 1231 9 Spaces Moved 2437 | 42 293 213 1198 686 5 Core 7 | 7 . . . . . Treads 674 | 35 293 213 133 . . Legs 489 | . . . 489 . . Wheels 1267 | . . . 576 686 5 Hover . | . . . . . . Flight . | . . . . . . Fastest Speed 50 | 50 160 160 120 170 175 Average Speed 166 | 141 160 160 167 171 175 Slowest Speed 540 | 160 160 160 540 175 175 Overloaded Moves . | . . . . . . Propulsion Burnouts . | . . . . . . Robots Hopped . | . . . . . . Cave-ins Triggered . | . . . . . . Exploration Rate (%) 48 | 5 61 45 81 93 3 Regions Visited 5 Branch Regions 2 Pre-discovered Areas 2 | . . 1 . 1 . Known Exits Taken . | . . . . . . Unknown Exits Taken 5 | 1 1 1 1 1 . Scrap Searched 3 | . . 1 . 2 . Spaces Dug 2 | . . . . 2 . Terrain Destroyed 98 | . . . 18 80 . Melee 2 | . . . . 2 . Projectile . | . . . . . . AOE 96 | . . . 18 78 . Terrain Rammed . | . . . . . . Walls Destroyed . | . . . . . . Machines Disabled . | . . . . . . Actions | -11 -10 -10 -9 -9 -8 --------- Run | Yrd Mat Min Mat Min Mat Total 2906 | 51 369 234 1518 729 5 Wait 179 | . 37 3 114 25 . Move 2432 | 41 292 212 1197 685 5 Hop . | . . . . . . Pick Up 54 | 4 4 . 44 2 . Fast Attach 18 | 5 2 . 11 . . Attach 7 | . 1 . 6 . . Detach 1 | . . . 1 . . Swap 26 | 1 . 3 19 3 . Drop 39 | . . 2 35 2 . Fire 140 | . 33 14 85 8 . Melee 8 | . . . 4 4 . Ram . | . . . . . . Kick 2 | . . . 2 . . Crush . | . . . . . . Escape Stasis . | . . . . . . Rewire . | . . . . . . Trap . | . . . . . . Miscellaneous . | . . . . . . Route ------- -11/Scrapyard -10/Materials (discovered 4 exits: *Mat x2 / [*Min x2]) -10/Mines -9/Materials (discovered 5 exits: [*Mat x2] / *Min x2 / [*Sto]) -9/Mines (discovered 3 exits: [*Mat x2] / [*Exi]) -8/Materials History --------- Turn | Location | Event 6 | -11/Scrapyard | Discovered new exit (range 14) 72 | -11/Scrapyard | Entered Materials 255 | -10/Materials | Discovered new exit (range 3) 261 | -10/Materials | Discovered new exit (range 13) 302 | -10/Materials | Build established: Mutant 461 | -10/Materials | Discovered new exit (range 15) 662 | -10/Materials | Discovered new exit (range 6) 670 | -10/Materials | Entered Mines 779 | -10/Mines | Learned location of Zion (-6) 887 | -10/Mines | Received a Mining Laser from a helpful Derelict 1035 | -10/Mines | Core integrity fell below 50% 1040 | -10/Mines | Discovered new exit (range 9) 1056 | -10/Mines | Entered Materials 1056 | -9/Materials | Accompanied by 1 ally 1056 | -9/Materials | Evolved 2 slots: Utility x2 1568 | -9/Materials | Build established: Scavenger-Mutant 1650 | -9/Materials | Discovered new exit (range 8) 1892 | -9/Materials | Discovered new exit (range 12) 2391 | -9/Materials | Build established: Hauler-Mutant 2770 | -9/Materials | Discovered new exit (range 8) 3038 | -9/Materials | Discovered new exit (range 5) 3142 | -9/Materials | Discovered new exit (range 7) 3360 | -9/Materials | Core integrity fell below 50% 3543 | -9/Materials | Entered Mines 3544 | -9/Mines | Met a Derelict bent on vengeance 3616 | -9/Mines | Learned Materials interactive machine intel 3669 | -9/Mines | Discovered new exit (range 7) 4024 | -9/Mines | Discovered new exit (range 6) 4027 | -9/Mines | Learned location of Storage (-9) 4107 | -9/Mines | Found the Drone Emporium 4607 | -9/Mines | Deemed a non-threat by the Exiles lab entrance 4609 | -9/Mines | Discovered new exit (range 5) 4666 | -9/Mines | Met a Derelict shopkeep closing up shop 4774 | -9/Mines | Entered Materials 4774 | -8/Materials | Evolved 2 slots: Utility x2 4775 | -8/Materials | Loaded intel: 19 interactive machine locations 4783 | -8/Materials | Self-destructed Last Messages --------------- 04485_ K-01 Serf destroyed. 04487_ Acquired Lgt. Ion Engine. 04492_ Dropped Com. Wheel. 04493_ Extracted 10 matter. 04528_ Sneak attack on T-07 Excavator. 04528_ T-07 Excavator destroyed. 04534_ K-01 Serf collects debris. 04607_ "No threat detected, you may enter." 04609_ EXIT=FOUND 04665_ Connecting with SHOP.Sys... >>Open Door Sealed Doors opened. 04666_ 4F-N76(g): "Sorry, the Unaware have moved into these parts and I'm closing up shop. No more sales from me!" 04668_ ALERT: Derelict activity detected in mines. Dispatching investigation squad. 04670_ 4F-N76(g): "Grab stuff and run for it!" PARAMETERS=UTILITY+2 LOCATION=UNKNOWN GOAL=ESCAPE Loading Materials interactive machine intel (x19)... Map ----- +----------------------------------------------------+ | ???????????????????????????????????????? | | ???????????????????????????????????????? | | ???????????????????????????????????????? | | ???????????????????????????????????????? | | ???????????????????????????????????????? | | ???????????????????????????????????????? | | ????????"""????????????????????????????? | | ????????"Y"????????????????????????????? | | ???????????????????????????????????????? | | ???????????????????????????????????????? | | ???????????????????????????????????????? | | ???????????????????????????????????????? | | ???????????????????????????????????????? | | ???????????????????????????????????????? | | ????????###+###????????????????????????? | | ????????# #????????????????????????? | | ????????# ????????????????????????? | | ????????# ?????????????????????????T | | ????????# ?????????????????????????? | | ????????# [ ?????????????????????????? | | ?????????# ######+###????????????T???? | | ?????????# # #????????????????" | | ?????????# # """ #????????????????" | | ?????????+ + """ #????????????????" | | ?????????# # """ #????????????????? | | ?????????# # @* #????????????????? | | ?????????# # """ #????????????????? | | ?????????##### """ #????????????????? | | ?????????????# * """ #????????????????? | | ?????????????# #????????????????? | | ?????????????##########????????????????? | | ???????????????????????????????????????? | | ???????????????????????????????????????? | | ???????????????????????????????????????? | | ???????????????????????????????????????? | | ???????????????????????????????????????? | | ???????????????????????????????????????? | | ???????????????????????????????????????? | | ???????????????????????????????????????? | | ???????????????????????????????????????? | | | | | | | | | | | | | | | | | | | | | +----------------------------------------------------+ Best States ------------- Heat Dissipation 48 Energy Generation 14 Energy Capacity 265 Matter Stores 300 Matter Capacity 300 Sight Range 16 Terrain Scan Density 10 Armor Coverage 150 Propulsion Shielding 33 Evasion (%) 55 Targeting Accuracy 5 Recoil Reduction 2 Offensive Hacking 10 Item Schematics ----------------- None Robot Schematics ------------------ None Fabricated ------------ Nothing Alien Tech Used ----------------- None Achievements -------------- Packrat Tank Challenges ------------ None Game ------ Seed ThunderZhirovLance Manual? 0 Play Time 00:31:51 Cumulative 19.6 hours Start 2024.06.13 @ 23:40:58 End 2024.06.14 @ 01:47:53 Sessions 3 Manual Loads 0 Difficulty Rogue Special Mode None Game No. 30 Rogue 23 Adventurer 7 Explorer 0 Win Type - Total 0 Types 0/0/0/0/0/0/0/0/0 Lore% 9 Gallery% 21 Achievement% 23 Wizard Run 0 Options --------- Layout 0 ASCII 0 Keyboard 0 Movement Mouse Keybinds 0 Fullscreen 2 Font 24/Smallcaps Map View 113x50 Zoom Use 0% Tactical HUD 1 Map Filters NONE Filters NONE Steam 1 RUN: eb6b2170-e7f8-495c-b010-696543925ec6